lending/lending_fUSD_20240603
["ID","MTS","AMOUNT","RATE_DAILY","PERIOD"]
[328424874,1717373432087,-308.14008547,0.00017158,2]
[328424875,1717373432099,-236.90366855,0.00017158,2]
[328424876,1717373432110,-300.0,0.00017159,2]
[328424877,1717373432119,-25.53177683,0.00019,2]
[328424878,1717373432130,-385.71191713,0.00019,2]
[328424879,1717373432139,-881.08534837,0.00019182,2]
[328424880,1717373432151,-118.91465163,0.00019182,2]
[328424881,1717373432160,-1417.54159128,0.00019449,2]
[328424882,1717373432188,-2470.69340313,0.00019449,2]
[328424883,1717373432197,-150.0,0.0001945,2]
[328424884,1717373432206,-150.0,0.0001945,2]
[328424885,1717373432216,-499.99,0.0001945,2]
[328424886,1717373432225,-880.52,0.0002,2]
[328424887,1717373432234,-155.0,0.0002,2]
[328424888,1717373432243,-863.57303464,0.0002,2]
[328424889,1717373432252,-226.50923576,0.000201,2]
[328424890,1717373432261,-210.0,0.00021395,2]
[328424891,1717373432270,-1000.0,0.000219,2]
[328424892,1717373432279,-157.88,0.00024384,2]
[328424893,1717373432288,-326.22,0.00024384,2]
[328424894,1717373432297,-509.4,0.00024614,2]
[328424895,1717373432306,-868.0,0.000247,2]
[328424896,1717373432315,-905.70534461,0.00025,2]
[328424897,1717373432326,-344.29465539,0.00025,2]
[328424898,1717373432337,-1274.90079038,0.00025936,2]
[328424899,1717373432348,-613.56,0.00025937,2]
[328424900,1717373432357,-185.0,0.00025988,2]
[328424901,1717373432366,-15916.48052523,0.00026237,2]
[328424902,1717373432377,-7973.51947477,0.00026237,2]
[328424903,1717373432387,-250.0,0.00026302,2]
[328424904,1717373432396,-402.08,0.0002631,2]
[328424905,1717373432405,-166.91,0.00026346,2]
[328424906,1717373432414,-250.0,0.00026363,2]
[328424907,1717373432424,-337.03,0.00026423,2]
[328424908,1717373432433,-166.91,0.00026543,2]
[328424909,1717373432442,-200.0,0.00026578,2]
[328424910,1717373432451,-404.63,0.00026584,2]
[328424911,1717373432460,-250.0,0.00026589,2]
[328424912,1717373432469,-166.91,0.00026739,2]
[328424913,1717373432478,-509.4,0.00026878,2]
[328424914,1717373432487,-166.91,0.00026935,2]
[328424915,1717373432495,-167.0,0.00026954,2]
[328424916,1717373432504,-1300.0,0.00027,2]
[328424918,1717373432513,-150.0,0.00027,2]
[328424919,1717373432522,-176.12144523,0.00027082,2]
[328424922,1717373432534,-4066.8319619,0.00027082,2]
[328424924,1717373432543,-162.311,0.00027092,2]
[328424926,1717373432552,-440.0,0.00027092,2]
[328424928,1717373432561,-918.655,0.00027092,2]
[328424930,1717373432570,-340.869,0.00027092,2]
[328424932,1717373432579,-686.286,0.00027092,2]
[328424933,1717373432588,-3864.867,0.00027092,2]
[328424934,1717373432597,-166.91,0.00027131,2]
[328424935,1717373432606,-166.91,0.00027327,2]
[328424936,1717373432615,-370.35996809,0.0002739,2]
[328424937,1717373432624,-151.48,0.00027397,2]
[328424938,1717373432633,-868.0,0.000274,2]
[328424939,1717373432641,-166.91,0.00027523,2]
[328424940,1717373432650,-1000.0,0.00027527,2]
[328424941,1717373432660,-166.91,0.00027719,2]
[328424942,1717373432669,-163.36,0.00028108,2]
[328424943,1717373432679,-1057.6958414,0.00028203,2]
[328424944,1717373432690,-7586.5441586,0.00028203,2]
[328424945,1717373432700,-167.0,0.00028575,2]
[328424946,1717373432709,-180.0,0.00028613,2]
[328424947,1717373432717,-613.56,0.00028677,2]
[328424948,1717373432727,-800.0,0.00028795,2]
[328424949,1717373432736,-800.0,0.00028822,2]
[328424950,1717373432745,-1000.0,0.00028846,2]
[328424951,1717373432754,-265.68702935,0.000289,2]
[328424952,1717373432763,-1350.0,0.00029,2]
[328424953,1717373432772,-509.4,0.00029142,2]
[328424954,1717373432781,-226.40515539,0.000295,3]
[328424955,1717373432790,-200.0,0.0003,2]
[328424956,1717373432798,-200.0,0.0003,2]
[328424957,1717373432807,-2562.75335091,0.0003,15]
[328424958,1717373432818,-387.24664909,0.0003,15]
[328424959,1717373432827,-825.753,0.00030036,2]
[328424960,1717373432836,-211.2013,0.00030036,2]
[328424961,1717373432849,-761.21841157,0.00030036,2]
[328424962,1717373432871,-494.85028843,0.00030036,2]
[328424963,1717373432881,-188.29737101,0.00030036,2]
[328424964,1717373432892,-339.85299,0.00030036,2]
[328424965,1717373432944,-677.46613899,0.00030036,2]
[328424966,1717373432953,-2465.41478449,0.00030036,2]
[328424967,1717373432964,-496.346633,0.00030036,2]
[328424968,1717373432975,-730.35536255,0.00030036,2]
[328424969,1717373432986,-3807.88321996,0.00030036,2]
[328424970,1717373432994,-2307.6594942,0.00030036,2]
[328424971,1717373433013,-264.37658424,0.00030036,2]
[328424972,1717373433043,-875.59927975,0.00030036,2]
[328424973,1717373433054,-801.36554768,0.00030036,2]
[328424974,1717373433079,-2782.51002855,0.00030036,2]
[328424986,1717373438158,-10994.97266558,0.00030036,2]
[328424988,1717373438168,-257.4876,0.00030036,2]
[328424989,1717373438177,-325.92139394,0.00030036,2]
[328424990,1717373438186,-1741.58660751,0.00030036,2]
[328424991,1717373438195,-425.2,0.00030126,2]
[328424992,1717373438204,-379.54,0.00030126,2]
[328424993,1717373438213,-379.54,0.00030126,2]
[328424994,1717373438222,-187.23602393,0.00030134,4]
[328424995,1717373438231,-192.07501283,0.00030134,2]
[328424996,1717373438240,-155.96188869,0.00030134,2]
[328424997,1717373438250,-155.0,0.00030135,2]
[328424998,1717373438262,-391.06069415,0.00030135,2]
[328424999,1717373438272,-269.70411108,0.00030135,2]
[328425000,1717373438282,-500.0,0.00030136,4]
[328425001,1717373438291,-500.0,0.00030136,4]
[328425002,1717373438300,-500.0,0.00030136,4]
[328425003,1717373438309,-500.0,0.00030136,4]
[328425004,1717373438319,-500.0,0.00030136,4]
[328425005,1717373438328,-500.0,0.00030136,4]
[328425006,1717373438337,-500.0,0.00030136,4]
[328425007,1717373438347,-500.0,0.00030136,4]
[328425008,1717373438356,-500.0,0.00030136,4]
[328425009,1717373438365,-500.0,0.00030136,4]
[328425010,1717373438376,-500.0,0.00030136,4]
[328425011,1717373438387,-500.0,0.00030136,4]
[328425012,1717373438396,-500.0,0.00030136,4]
[328425013,1717373438406,-500.0,0.00030136,4]
[328425014,1717373438415,-500.0,0.00030136,4]
[328425015,1717373438424,-500.0,0.00030136,4]
[328425016,1717373438433,-500.0,0.00030136,4]
[328425017,1717373438442,-500.0,0.00030136,4]
[328425018,1717373438451,-530.04,0.00030136,4]
[328425019,1717373438461,-500.0,0.00030136,4]
[328425020,1717373438470,-500.0,0.00030136,4]
[328425021,1717373438479,-532.63992303,0.00030136,4]
[328425022,1717373438488,-500.0,0.00030136,4]
[328425023,1717373438498,-500.0,0.00030136,4]
[328425024,1717373438507,-500.0,0.00030136,4]
[328425025,1717373438516,-500.0,0.00030136,4]
[328425027,1717373438525,-436.87990664,0.00030136,4]
[328425030,1717373438542,-63.12009336,0.00030136,4]
[328425032,1717373438551,-500.0,0.00030136,4]
[328425033,1717373438560,-500.0,0.00030136,4]
[328425035,1717373438569,-500.0,0.00030136,4]
[328425037,1717373438578,-500.0,0.00030136,4]
[328425040,1717373438588,-624.11,0.00030136,4]
[328425041,1717373438597,-500.0,0.00030136,4]
[328425044,1717373438606,-500.0,0.00030136,4]
[328425045,1717373438615,-500.0,0.00030136,4]
[328425048,1717373438624,-5.2798273,0.00030136,4]
[328425050,1717373438636,-494.7201727,0.00030136,4]
[328425052,1717373438644,-188.4550283,0.00030136,4]
[328425054,1717373438655,-311.5449717,0.00030136,4]
[328425056,1717373438664,-500.0,0.00030136,4]
[328425058,1717373438673,-500.0,0.00030136,4]
[328425060,1717373438682,-250.0,0.00030136,4]
[328425062,1717373438691,-692.67,0.00030136,4]
[328425064,1717373438700,-500.0,0.00030136,4]
[328425066,1717373438710,-500.0,0.00030136,4]
[328425068,1717373438719,-500.0,0.00030136,4]
[328425070,1717373438728,-500.0,0.00030136,2]
[328425072,1717373438737,-500.0,0.00030136,4]
[328425074,1717373438747,-500.0,0.00030136,4]
[328425076,1717373438756,-500.0,0.00030136,4]
[328425078,1717373438765,-500.0,0.00030136,4]
[328425080,1717373438774,-1297.81,0.00030136,4]
[328425082,1717373438783,-563.28,0.00030136,4]
[328425084,1717373438792,-510.85,0.00030136,4]
[328425086,1717373438801,-500.0,0.00030136,4]
[328425087,1717373438810,-500.0,0.00030136,4]
[328425090,1717373438819,-500.0,0.00030136,4]
[328425091,1717373438829,-500.0,0.00030136,4]
[328425094,1717373438839,-560.81,0.00030136,4]
[328425096,1717373438851,-500.0,0.00030136,2]
[328425097,1717373438860,-500.0,0.00030136,4]
[328425100,1717373438870,-500.0,0.00030136,4]
[328425102,1717373438879,-500.0,0.00030136,4]
[328425103,1717373438888,-500.0,0.00030136,4]
[328425105,1717373438897,-502.85,0.00030136,4]
[328425107,1717373438907,-534.50451248,0.00030136,4]
[328425109,1717373438918,-500.0,0.00030136,4]
[328425112,1717373438928,-1505.85,0.00030136,4]
[328425114,1717373438937,-500.0,0.00030136,4]
[328425116,1717373438946,-500.0,0.00030136,4]
[328425118,1717373438955,-500.0,0.00030136,4]
[328425119,1717373438964,-500.0,0.00030136,4]
[328425122,1717373438973,-500.0,0.00030136,4]
[328425124,1717373438982,-500.0,0.00030136,4]
[328425125,1717373438992,-500.0,0.00030136,4]
[328425128,1717373439001,-500.0,0.00030136,4]
[328425130,1717373439011,-500.0,0.00030136,4]
[328425132,1717373439021,-660.63,0.00030136,4]
[328425133,1717373439031,-500.0,0.00030136,4]
[328425135,1717373439040,-500.0,0.00030136,4]
[328425137,1717373439050,-500.0,0.00030136,4]
[328425139,1717373439059,-500.0,0.00030136,4]
[328425141,1717373439069,-500.0,0.00030136,4]
[328425143,1717373439080,-500.0,0.00030136,4]
[328425146,1717373439089,-500.0,0.00030136,4]
[328425147,1717373439098,-500.0,0.00030136,4]
[328425150,1717373439108,-500.0,0.00030136,4]
[328425151,1717373439117,-500.0,0.00030136,4]
[328425153,1717373439127,-500.0,0.00030136,4]
[328425155,1717373439136,-500.0,0.00030136,4]
[328425157,1717373439146,-500.0,0.00030136,4]
[328425159,1717373439155,-500.0,0.00030136,4]
[328425161,1717373439164,-438.12011177,0.00030136,4]
[328425163,1717373439173,-500.0,0.00030136,4]
[328425165,1717373439183,-500.0,0.00030136,4]
[328425167,1717373439192,-500.0,0.00030136,4]
[328425169,1717373439202,-500.0,0.00030136,4]
[328425171,1717373439211,-500.0,0.00030136,4]
[328425173,1717373439221,-500.0,0.00030136,4]
[328425175,1717373439231,-607.38,0.00030136,4]
[328425177,1717373439240,-668.49,0.00030136,4]
[328425180,1717373439249,-500.0,0.00030136,4]
[328425182,1717373439258,-500.0,0.00030136,4]
[328425183,1717373439268,-500.0,0.00030136,4]
[328425186,1717373439277,-500.0,0.00030136,4]
[328425187,1717373439286,-500.0,0.00030136,4]
[328425190,1717373439296,-500.0,0.00030136,4]
[328425191,1717373439305,-500.0,0.00030136,4]
[328425194,1717373439315,-500.0,0.00030136,4]
[328425196,1717373439324,-300.62594652,0.00030136,4]
[328425198,1717373439334,-500.0,0.00030136,4]
[328425200,1717373439344,-500.0,0.00030136,4]
[328425202,1717373439354,-500.0,0.00030136,4]
[328425204,1717373439363,-514.08,0.00030136,2]
[328425206,1717373439372,-500.0,0.00030136,4]
[328425208,1717373439381,-500.0,0.00030136,4]
[328425209,1717373439389,-500.0,0.00030136,4]
[328425211,1717373439399,-500.0,0.00030136,4]
[328425214,1717373439408,-500.0,0.00030136,4]
[328425216,1717373439418,-500.0,0.00030136,4]
[328425218,1717373439427,-500.0,0.00030136,4]
[328425219,1717373439437,-511.68,0.00030136,4]
[328425221,1717373439446,-617.42483939,0.00030136,4]
[328425223,1717373439456,-500.0,0.00030136,4]
[328425224,1717373439466,-500.0,0.00030136,4]
[328425225,1717373439475,-500.0,0.00030136,4]
[328425226,1717373439485,-515.82,0.00030136,4]
[328425227,1717373439494,-500.0,0.00030136,4]
[328425228,1717373439504,-500.0,0.00030136,4]
[328425229,1717373439513,-500.0,0.00030136,4]
[328425230,1717373439524,-500.0,0.00030136,4]
[328425231,1717373439533,-500.0,0.00030136,4]
[328425232,1717373439543,-500.0,0.00030136,4]
[328425233,1717373439553,-500.0,0.00030136,4]
[328425234,1717373439562,-773.98,0.00030136,4]
[328425235,1717373439572,-611.79,0.00030136,4]
[328425236,1717373439581,-500.0,0.00030136,4]
[328425237,1717373439591,-500.0,0.00030136,4]
[328425238,1717373439600,-500.0,0.00030136,4]
[328425239,1717373439608,-500.0,0.00030136,4]
[328425240,1717373439617,-585.04,0.00030136,4]
[328425241,1717373439626,-1242.29,0.00030136,4]
[328425243,1717373439636,-500.0,0.00030136,4]
[328425245,1717373439645,-500.0,0.00030136,4]
[328425247,1717373439654,-500.0,0.00030136,4]
[328425249,1717373439664,-500.0,0.00030136,4]
[328425251,1717373439673,-500.0,0.00030136,4]
[328425253,1717373439683,-500.0,0.00030136,4]
[328425255,1717373439692,-662.44,0.00030136,4]
[328425257,1717373439702,-500.0,0.00030136,4]
[328425259,1717373439711,-500.0,0.00030136,4]
[328425261,1717373439720,-500.0,0.00030136,4]
[328425263,1717373439730,-500.0,0.00030136,4]
[328425265,1717373439740,-500.0,0.00030136,4]
[328425267,1717373439749,-500.0,0.00030136,4]
[328425269,1717373439759,-500.0,0.00030136,4]
[328425271,1717373439768,-500.0,0.00030136,4]
[328425273,1717373439778,-500.0,0.00030136,4]
[328425275,1717373439788,-500.0,0.00030136,4]
[328425278,1717373439798,-784.71,0.00030136,4]
[328425280,1717373439807,-671.99,0.00030136,4]
[328425282,1717373439817,-500.0,0.00030136,4]
[328425284,1717373439826,-500.0,0.00030136,4]
[328425286,1717373439835,-687.44,0.00030136,4]
[328425288,1717373439849,-500.0,0.00030136,4]
[328425290,1717373439858,-500.0,0.00030136,4]
[328425292,1717373439867,-500.0,0.00030136,4]
[328425294,1717373439877,-500.0,0.00030136,4]
[328425296,1717373439887,-500.0,0.00030136,4]
[328425298,1717373439896,-500.0,0.00030136,4]
[328425300,1717373439905,-500.0,0.00030136,4]
[328425302,1717373439915,-500.0,0.00030136,4]
[328425304,1717373439926,-509.9682691,0.00030136,4]
[328425306,1717373439936,-500.0,0.00030136,4]
[328425308,1717373439946,-500.0,0.00030136,4]
[328425310,1717373439956,-210.03609423,0.00030136,4]
[328425340,1717373440227,-524.18265939,0.00030136,4]
[328425342,1717373440238,-330.2694009,0.00030136,4]
[328425345,1717373440255,-646.47184548,0.00030136,4]
[328425347,1717373440264,-500.0,0.00030136,4]
[328425348,1717373440273,-610.17443992,0.00030136,4]
[328425349,1717373440283,-500.0,0.00030136,4]
[328425350,1717373440292,-521.92,0.00030136,4]
[328425351,1717373440301,-500.0,0.00030136,4]
[328425352,1717373440311,-500.0,0.00030136,4]
[328425353,1717373440320,-500.0,0.00030136,4]
[328425354,1717373440329,-500.0,0.00030136,4]
[328425355,1717373440338,-500.0,0.00030136,4]
[328425356,1717373440347,-500.0,0.00030136,4]
[328425357,1717373440357,-500.0,0.00030136,4]
[328425358,1717373440367,-504.41876633,0.00030136,4]
[328425359,1717373440376,-511.50140889,0.00030136,4]
[328425360,1717373440385,-500.0,0.00030136,4]
[328425361,1717373440394,-500.0,0.00030136,4]
[328425362,1717373440403,-500.0,0.00030136,4]
[328425363,1717373440413,-500.0,0.00030136,4]
[328425364,1717373440423,-500.0,0.00030136,4]
[328425365,1717373440433,-500.0,0.00030136,4]
[328425366,1717373440443,-500.0,0.00030136,4]
[328425367,1717373440452,-500.0,0.00030136,4]
[328425368,1717373440462,-500.0,0.00030136,4]
[328425369,1717373440472,-500.0,0.00030136,4]
[328425370,1717373440481,-571.03,0.00030136,4]
[328425371,1717373440491,-500.0,0.00030136,4]
[328425373,1717373440501,-500.0,0.00030136,4]
[328425374,1717373440510,-500.0,0.00030136,4]
[328425375,1717373440520,-500.0,0.00030136,4]
[328425376,1717373440530,-500.0,0.00030136,4]
[328425377,1717373440540,-250.43807122,0.00030136,4]
[328425378,1717373440549,-500.0,0.00030136,4]
[328425380,1717373440559,-500.0,0.00030136,4]
[328425382,1717373440568,-500.0,0.00030136,4]
[328425384,1717373440578,-500.0,0.00030136,4]
[328425386,1717373440588,-508.88,0.00030136,4]
[328425388,1717373440597,-500.0,0.00030136,4]
[328425390,1717373440607,-551.79,0.00030136,4]
[328425392,1717373440616,-771.89,0.00030136,4]
[328425394,1717373440625,-500.0,0.00030136,4]
[328425396,1717373440635,-150.0,0.00030136,4]
[328425398,1717373440644,-500.0,0.00030136,4]
[328425400,1717373440654,-500.0,0.00030136,4]
[328425402,1717373440663,-500.0,0.00030136,4]
[328425404,1717373440672,-248.39795951,0.00030136,4]
[328425407,1717373440692,-251.60204049,0.00030136,4]
[328425409,1717373440701,-50.91974423,0.00030136,4]
[328425420,1717373440798,-449.08025577,0.00030136,4]
[328425421,1717373440807,-500.0,0.00030136,4]
[328425422,1717373440817,-500.0,0.00030136,4]
[328425424,1717373440827,-500.0,0.00030136,4]
[328425426,1717373440837,-500.0,0.00030136,4]
[328425428,1717373440851,-500.0,0.00030136,4]
[328425430,1717373440860,-500.0,0.00030136,4]
[328425432,1717373440870,-500.0,0.00030136,4]
[328425434,1717373440880,-525.35547947,0.00030136,4]
[328425437,1717373440892,-110.03018286,0.00030136,4]
[328425439,1717373440901,-500.0,0.00030136,4]
[328425441,1717373440911,-500.0,0.00030136,4]
[328425443,1717373440921,-162.3662457,0.00030136,4]
[328425446,1717373440943,-337.6337543,0.00030136,4]
[328425448,1717373440952,-500.0,0.00030136,4]
[328425450,1717373440962,-830.99,0.00030136,4]
[328425452,1717373440971,-500.0,0.00030136,4]
[328425454,1717373440981,-624.76,0.00030136,4]
[328425456,1717373440990,-695.3,0.00030136,4]
[328425458,1717373440999,-500.0,0.00030136,4]
[328425460,1717373441009,-500.0,0.00030136,4]
[328425462,1717373441018,-518.46141444,0.00030136,4]
[328425464,1717373441027,-12.30425126,0.00030136,4]
[328425466,1717373441040,-254.99999,0.00030136,4]
[328425468,1717373441051,-232.69575874,0.00030136,4]
[328425470,1717373441060,-508.98579691,0.00030136,4]
[328425472,1717373441070,-500.0,0.00030136,4]
[328425474,1717373441080,-98.58321196,0.00030136,4]
[328425476,1717373441092,-401.41678804,0.00030136,4]
[328425478,1717373441103,-500.0,0.00030136,4]
[328425480,1717373441112,-356.86860338,0.00030136,4]
[328425483,1717373441127,-143.13139662,0.00030136,4]
[328425485,1717373441138,-468.43611439,0.00030136,4]
[328425488,1717373441150,-31.56388561,0.00030136,4]
[328425490,1717373441160,-420.01475753,0.00030136,4]
[328425492,1717373441172,-79.98524247,0.00030136,4]
[328425494,1717373441183,-500.0,0.00030136,4]
[328425496,1717373441193,-593.47,0.00030136,4]
[328425498,1717373441202,-726.12,0.00030136,4]
[328425500,1717373441212,-98.36979753,0.00030136,4]
[328425510,1717373441422,-401.63020247,0.00030136,4]
[328425511,1717373441431,-500.0,0.00030136,4]
[328425512,1717373441441,-391.13794367,0.00030136,4]
[328425513,1717373441562,-108.86205633,0.00030136,4]
[328425514,1717373441571,-354.40756543,0.00030136,4]
[328425515,1717373441587,-145.59243457,0.00030136,4]
[328425516,1717373441597,-500.0,0.00030136,4]
[328425517,1717373441607,-500.0,0.00030136,4]
[328425518,1717373441617,-401.31623386,0.00030136,4]
[328425519,1717373441628,-98.68376614,0.00030136,4]
[328425520,1717373441638,-500.0,0.00030136,4]
[328425521,1717373441647,-500.0,0.00030136,4]
[328425522,1717373441657,-500.0,0.00030136,4]
[328425523,1717373441667,-74.91686633,0.00030136,4]
[328425524,1717373443240,-425.08313367,0.00030136,4]
[328425525,1717373443251,-27.91686633,0.00030136,4]
[328425526,1717373443572,-613.11313367,0.00030136,4]
[328425527,1717373443582,-500.0,0.00030136,4]
[328425528,1717373443592,-500.0,0.00030136,4]
[328425529,1717373443601,-500.0,0.00030136,4]
[328425530,1717373443611,-500.0,0.00030136,4]
[328425531,1717373443621,-500.0,0.00030136,4]
[328425532,1717373443632,-500.0,0.00030136,4]
[328425533,1717373443641,-416.56,0.00030136,4]
[328425534,1717373443651,-500.0,0.00030136,4]
[328425535,1717373443661,-500.0,0.00030136,4]
[328425536,1717373443670,-541.06,0.00030136,4]
[328425537,1717373443680,-500.0,0.00030136,4]
[328425538,1717373443690,-621.14,0.00030136,4]
[328425539,1717373443699,-500.0,0.00030136,4]
[328425540,1717373443709,-500.0,0.00030136,4]
[328425541,1717373443718,-541.68,0.00030136,4]
[328425542,1717373443727,-500.0,0.00030136,4]
[328425543,1717373443737,-1545.7,0.00030136,4]
[328425544,1717373443746,-184.82948133,0.00030136,4]
[328425545,1717373443755,-6971.08769183,0.00030136,4]
[328425546,1717373443776,-1194.30230817,0.00030136,4]
[328425547,1717373443786,-500.0,0.00030136,4]
[328425548,1717373443796,-1040.11,0.00030136,4]
[328425549,1717373443805,-875.66,0.00030136,4]
[328425550,1717373443815,-500.0,0.00030136,4]
[328425551,1717373443824,-511.09748633,0.00030136,4]
[328425552,1717373443834,-519.28881338,0.00030136,4]
[328425553,1717373443848,-500.0,0.00030136,4]
[328425554,1717373443858,-995.63,0.00030136,4]
[328425555,1717373443867,-1129.01,0.00030136,4]
[328425556,1717373443876,-4250.46,0.00030136,4]
[328425557,1717373443887,-500.0,0.00030136,4]
[328425558,1717373443896,-500.0,0.00030136,4]
[328425559,1717373443905,-941.41,0.00030136,4]
[328425560,1717373443915,-500.0,0.00030136,4]
[328425561,1717373443927,-500.0,0.00030136,4]
[328425562,1717373443937,-500.0,0.00030136,4]
[328425563,1717373443946,-500.0,0.00030136,4]
[328425564,1717373443955,-500.0,0.00030136,4]
[328425565,1717373443964,-500.0,0.00030136,4]
[328425566,1717373443974,-500.0,0.00030136,4]
[328425567,1717373443983,-3109.48,0.00030136,4]
[328425568,1717373443993,-1070.17,0.00030136,4]
[328425569,1717373444002,-1127.44,0.00030136,4]
[328425570,1717373444012,-500.0,0.00030136,4]
[328425571,1717373444021,-962.47,0.00030136,4]
[328425572,1717373444031,-879.62,0.00030136,4]
[328425573,1717373444040,-643.92,0.00030136,4]
[328425574,1717373444050,-500.0,0.00030136,4]
[328425575,1717373444059,-475.49470415,0.00030136,4]
[328425576,1717373444069,-500.0,0.00030136,4]
[328425577,1717373444080,-3355.48,0.00030136,4]
[328425578,1717373444090,-500.0,0.00030136,4]
[328425579,1717373444099,-500.0,0.00030136,4]
[328425580,1717373444108,-500.0,0.00030136,4]
[328425581,1717373444117,-500.0,0.00030136,4]
[328425582,1717373444127,-500.0,0.00030136,4]
[328425583,1717373444136,-503.10653715,0.00030136,4]
[328425584,1717373444145,-1200.82,0.00030136,4]
[328425585,1717373444154,-545.63505558,0.00030136,4]
[328425586,1717373444164,-500.0,0.00030136,4]
[328425587,1717373444175,-615.68,0.00030136,4]
[328425588,1717373444186,-500.0,0.00030136,4]
[328425589,1717373444196,-500.0,0.00030136,4]
[328425590,1717373444205,-562.19,0.00030136,4]
[328425591,1717373444215,-947.56,0.00030136,4]
[328425592,1717373444224,-1024.15,0.00030136,4]
[328425593,1717373444234,-500.0,0.00030136,4]
[328425594,1717373444243,-596.96964207,0.00030136,4]
[328425595,1717373444253,-500.0,0.00030136,4]
[328425596,1717373444263,-999.58,0.00030136,4]
[328425597,1717373444273,-620.23,0.00030136,4]
[328425598,1717373444282,-500.0,0.00030136,4]
[328425599,1717373444292,-217.03,0.00030136,4]
[328425600,1717373444302,-962.3,0.00030136,4]
[328425601,1717373444311,-714.63,0.00030136,4]
[328425602,1717373444320,-500.0,0.00030136,4]
[328425603,1717373444331,-500.0,0.00030136,4]
[328425604,1717373444340,-500.0,0.00030136,4]
[328425605,1717373444351,-575.28,0.00030136,4]
[328425606,1717373444363,-500.0,0.00030136,4]
[328425607,1717373444372,-545.13,0.00030136,4]
[328425608,1717373444383,-500.0,0.00030136,4]
[328425609,1717373444392,-500.0,0.00030136,4]
[328425610,1717373444402,-500.0,0.00030136,4]
[328425611,1717373444412,-500.0,0.00030136,4]
[328425612,1717373444421,-500.0,0.00030136,4]
[328425613,1717373444432,-500.0,0.00030136,4]
[328425614,1717373444441,-528.14,0.00030136,4]
[328425615,1717373444450,-500.0,0.00030136,4]
[328425616,1717373444460,-500.0,0.00030136,4]
[328425617,1717373444469,-500.0,0.00030136,4]
[328425618,1717373444479,-662.26,0.00030136,4]
[328425619,1717373444488,-560.26,0.00030136,4]
[328425620,1717373444497,-500.0,0.00030136,4]
[328425621,1717373444507,-500.0,0.00030136,4]
[328425622,1717373444516,-648.0,0.00030136,4]
[328425623,1717373444526,-500.0,0.00030136,4]
[328425624,1717373444535,-500.0,0.00030136,4]
[328425625,1717373444545,-500.0,0.00030136,4]
[328425626,1717373444554,-500.0,0.00030136,4]
[328425627,1717373444563,-536.55669407,0.00030136,4]
[328425628,1717373444573,-544.65,0.00030136,4]
[328425629,1717373444582,-500.0,0.00030136,4]
[328425630,1717373444592,-500.0,0.00030136,4]
[328425631,1717373444601,-500.0,0.00030136,4]
[328425632,1717373444610,-500.0,0.00030136,4]
[328425633,1717373444620,-500.0,0.00030136,4]
[328425634,1717373444629,-819.66,0.00030136,4]
[328425635,1717373444638,-500.0,0.00030136,4]
[328425636,1717373444647,-500.0,0.00030136,4]
[328425637,1717373444657,-500.0,0.00030136,4]